[Event "Titled Tuesday Blitz May 03 Late 2022"]
[White "Trost, Edvin"]
[Black "Pakleza, Zbigniew"]
[WhiteFideId "1729519"]
[BlackFideId "1119290"]
[WhiteElo "2160"]
[BlackElo "2467"]
[Result "0-1"]
[Round "06"]
[TimeControl "180+1"]
[Date "2022.05.03"]
[WhiteClock "0:00:05"]
[BlackClock "0:00:11"]

1. d4 {[%clk 0:03:00]}  d6 {[%clk 0:02:59]} 2. e4 {[%clk 0:02:55]}  Nf6 {[%clk 0:02:59]} 3. Nc3 {[%clk 0:02:55]}  c6 {[%clk 0:03:00]} 4. f4 {[%clk 0:02:55]}  Qb6 {[%clk 0:03:00]} 5. Be2 {[%clk 0:02:49]}  e5 {[%clk 0:03:00]} 6. Nf3 {[%clk 0:02:46]}  Nbd7 {[%clk 0:03:00]} 7. O-O {[%clk 0:02:43]}  Be7 {[%clk 0:03:00]} 8. Kh1 {[%clk 0:02:33]}  exd4 {[%clk 0:02:49]} 9. Nxd4 {[%clk 0:02:31]}  Nc5 {[%clk 0:02:49]} 10. Bf3 {[%clk 0:02:28]}  O-O {[%clk 0:02:48]} 11. a3 {[%clk 0:02:23]}  a5 {[%clk 0:02:47]} 12. Rb1 {[%clk 0:02:22]}  Re8 {[%clk 0:02:42]} 13. Be3 {[%clk 0:02:19]}  Bf8 {[%clk 0:02:34]} 14. Nb3 {[%clk 0:02:17]}  a4 {[%clk 0:01:45]} 15. Nxc5 {[%clk 0:02:16]}  dxc5 {[%clk 0:01:45]} 16. e5 {[%clk 0:02:15]}  Nd7 {[%clk 0:01:43]} 17. Ne4 {[%clk 0:02:15]}  Qc7 {[%clk 0:01:28]} 18. Qd2 {[%clk 0:01:57]}  c4 {[%clk 0:01:20]} 19. Rbd1 {[%clk 0:01:53]}  Nb6 {[%clk 0:01:20]} 20. Nd6 {[%clk 0:01:45]}  Re7 {[%clk 0:00:52]} 21. Be4 {[%clk 0:01:30]}  Nd5 {[%clk 0:00:42]} 22. Bxd5 {[%clk 0:01:27]}  cxd5 {[%clk 0:00:43]} 23. Qxd5 {[%clk 0:01:28]}  c3 {[%clk 0:00:41]} 24. Nb5 {[%clk 0:01:25]}  Qc6 {[%clk 0:00:31]} 25. Nxc3 {[%clk 0:01:25]}  Bf5 {[%clk 0:00:28]} 26. Qxc6 {[%clk 0:01:23]}  bxc6 {[%clk 0:00:29]} 27. Bc5 {[%clk 0:01:23]}  Rb7 {[%clk 0:00:26]} 28. Bxf8 {[%clk 0:01:19]}  Kxf8 {[%clk 0:00:27]} 29. Rb1 {[%clk 0:00:51]}  Bxc2 {[%clk 0:00:25]} 30. Rbc1 {[%clk 0:00:51]}  Bf5 {[%clk 0:00:19]} 31. Rf2 {[%clk 0:00:51]}  Ke7 {[%clk 0:00:17]} 32. h3 {[%clk 0:00:51]}  h5 {[%clk 0:00:17]} 33. Nd1 {[%clk 0:00:50]}  Ra6 {[%clk 0:00:12]} 34. Ne3 {[%clk 0:00:49]}  Be4 {[%clk 0:00:13]} 35. Nc4 {[%clk 0:00:48]}  Bd5 {[%clk 0:00:10]} 36. Nd6 {[%clk 0:00:45]}  Rb3 {[%clk 0:00:11]} 37. Kh2 {[%clk 0:00:42]}  Ke6 {[%clk 0:00:09]} 38. Re1 {[%clk 0:00:41]}  g6 {[%clk 0:00:06]} 39. Ree2 {[%clk 0:00:39]}  Rab6 {[%clk 0:00:06]} 40. f5+ {[%clk 0:00:38]}  gxf5 {[%clk 0:00:07]} 41. Nxf5 {[%clk 0:00:38]}  Kd7 {[%clk 0:00:04]} 42. Nd4 {[%clk 0:00:34]}  Rd3 {[%clk 0:00:04]} 43. Nf5 {[%clk 0:00:33]}  Rbb3 {[%clk 0:00:03]} 44. Nd6 {[%clk 0:00:31]}  Re3 {[%clk 0:00:03]} 45. Rxe3 {[%clk 0:00:30]}  Rxe3 {[%clk 0:00:04]} 46. Nxf7 {[%clk 0:00:30]}  h4 {[%clk 0:00:03]} 47. Rf4 {[%clk 0:00:28]}  c5 {[%clk 0:00:03]} 48. Ng5 {[%clk 0:00:26]}  Re2 {[%clk 0:00:03]} 49. e6+ {[%clk 0:00:24]}  Kd6 {[%clk 0:00:04]} 50. Rg4 {[%clk 0:00:23]}  Rxb2 {[%clk 0:00:04]} 51. Ne4+ {[%clk 0:00:20]}  Bxe4 {[%clk 0:00:01]} 52. Rxe4 {[%clk 0:00:21]}  Ke7 {[%clk 0:00:01]} 53. Re5 {[%clk 0:00:20]}  c4 {[%clk 0:00:01]} 54. Rc5 {[%clk 0:00:16]}  Rc2 {[%clk 0:00:02]} 55. Ra5 {[%clk 0:00:16]}  c3 {[%clk 0:00:03]} 56. Rxa4 {[%clk 0:00:16]}  Kxe6 {[%clk 0:00:04]} 57. Rxh4 {[%clk 0:00:16]}  Kd5 {[%clk 0:00:05]} 58. a4 {[%clk 0:00:16]}  Rc1 {[%clk 0:00:06]} 59. Rh8 {[%clk 0:00:15]}  Kd4 {[%clk 0:00:06]} 60. Rc8 {[%clk 0:00:15]}  Ra1 {[%clk 0:00:07]} 61. Rd8+ {[%clk 0:00:15]}  Ke3 {[%clk 0:00:07]} 62. Rc8 {[%clk 0:00:14]}  Kd2 {[%clk 0:00:08]} 63. Rd8+ {[%clk 0:00:12]}  Ke2 {[%clk 0:00:08]} 64. Re8+ {[%clk 0:00:11]}  Kd2 {[%clk 0:00:08]} 65. Rd8+ {[%clk 0:00:12]}  Kc1 {[%clk 0:00:08]} 66. h4 {[%clk 0:00:10]}  Rxa4 {[%clk 0:00:07]} 67. Rc8 {[%clk 0:00:08]}  c2 {[%clk 0:00:08]} 68. Kh3 {[%clk 0:00:04]}  Kb2 {[%clk 0:00:08]} 69. g4 {[%clk 0:00:04]}  Ra3+ {[%clk 0:00:09]} 70. Kh2 {[%clk 0:00:04]}  Rc3 {[%clk 0:00:09]} 71. Rb8+ {[%clk 0:00:04]}  Ka2 {[%clk 0:00:06]} 72. Ra8+ {[%clk 0:00:02]}  Kb2 {[%clk 0:00:05]} 73. Rb8+ {[%clk 0:00:02]}  Ka3 {[%clk 0:00:05]} 74. Ra8+ {[%clk 0:00:03]}  Kb4 {[%clk 0:00:06]} 75. Ra1 {[%clk 0:00:02]}  c1=Q {[%clk 0:00:06]} 76. Rxc1 {[%clk 0:00:03]}  Rxc1 {[%clk 0:00:07]} 77. Kg3 {[%clk 0:00:04]}  Kc5 {[%clk 0:00:07]} 78. Kf4 {[%clk 0:00:04]}  Kd6 {[%clk 0:00:08]} 79. Kf5 {[%clk 0:00:04]}  Ke7 {[%clk 0:00:09]} 80. Kg6 {[%clk 0:00:05]}  Kf8 {[%clk 0:00:09]} 81. Kh7 {[%clk 0:00:05]}  Rc4 {[%clk 0:00:09]} 82. g5 {[%clk 0:00:03]}  Rxh4+ {[%clk 0:00:09]} 83. Kg6 {[%clk 0:00:04]}  Kg8 {[%clk 0:00:10]} 84. Kf5 {[%clk 0:00:02]}  Ra4 {[%clk 0:00:10]} 85. Kg6 {[%clk 0:00:03]}  Ra6+ {[%clk 0:00:10]} 86. Kh5 {[%clk 0:00:04]}  Kg7 {[%clk 0:00:10]} 87. g6 {[%clk 0:00:05]}  Ra5+ {[%clk 0:00:11]} 0-1


[Site "https://www.chess.com"]

[Event "Titled Tuesday Blitz May 03 Late 2022"]
[White "Vlassov, Nikolai"]
[Black "Keymer, Vincent"]
[WhiteFideId "4103360"]
[BlackFideId "12940690"]
[WhiteElo "2407"]
[BlackElo "2557"]
[Result "0-1"]
[Round "06"]
[TimeControl "180+1"]
[Date "2022.05.03"]
[WhiteClock "0:01:20"]
[BlackClock "0:01:18"]

1. e4 {[%clk 0:03:00]}  c6 {[%clk 0:02:59]} 2. d4 {[%clk 0:03:00]}  d5 {[%clk 0:03:00]} 3. e5 {[%clk 0:03:01]}  Bf5 {[%clk 0:03:00]} 4. Nc3 {[%clk 0:03:01]}  e6 {[%clk 0:02:57]} 5. g4 {[%clk 0:03:01]}  Bg6 {[%clk 0:02:57]} 6. Nge2 {[%clk 0:03:01]}  c5 {[%clk 0:02:56]} 7. Be3 {[%clk 0:03:01]}  Nc6 {[%clk 0:02:53]} 8. dxc5 {[%clk 0:02:59]}  h5 {[%clk 0:02:45]} 9. Nf4 {[%clk 0:02:47]}  d4 {[%clk 0:02:43]} 10. Nxg6 {[%clk 0:02:47]}  fxg6 {[%clk 0:02:43]} 11. Qd3 {[%clk 0:02:41]}  Kf7 {[%clk 0:02:08]} 12. O-O-O {[%clk 0:02:29]}  dxc3 {[%clk 0:01:51]} 13. Qe4 {[%clk 0:01:52]}  cxb2+ {[%clk 0:01:45]} 14. Kxb2 {[%clk 0:01:52]}  Qxd1 {[%clk 0:01:38]} 15. Bd3 {[%clk 0:01:52]}  Qxg4 {[%clk 0:01:37]} 16. f4 {[%clk 0:01:46]}  Rd8 {[%clk 0:01:25]} 17. Rg1 {[%clk 0:01:45]}  Qf5 {[%clk 0:01:24]} 18. Qc4 {[%clk 0:01:41]}  Rxd3 {[%clk 0:01:23]} 19. cxd3 {[%clk 0:01:41]}  Nge7 {[%clk 0:01:24]} 20. Qc1 {[%clk 0:01:25]}  Nd5 {[%clk 0:01:21]} 21. Bd2 {[%clk 0:01:21]}  Be7 {[%clk 0:01:18]} 22. Qf1 {[%clk 0:01:20]}  Rd8 {[%clk 0:01:18]} 0-1


[Site "https://www.chess.com"]

[Event "Titled Tuesday Blitz May 03 Late 2022"]
[White "Vovk, Orest"]
[Black "Koelle, Tobias"]
[WhiteFideId "14113490"]
[BlackFideId "16207378"]
[WhiteElo "2203"]
[BlackElo "2541"]
[Result "0-1"]
[Round "06"]
[TimeControl "180+1"]
[Date "2022.05.03"]
[WhiteClock "0:01:42"]
[BlackClock "0:02:28"]

1. h4 {[%clk 0:02:57]}  d5 {[%clk 0:02:56]} 2. h5 {[%clk 0:02:57]}  h6 {[%clk 0:02:56]} 3. e4 {[%clk 0:02:57]}  dxe4 {[%clk 0:02:55]} 4. Nc3 {[%clk 0:02:56]}  Nf6 {[%clk 0:02:54]} 5. Qe2 {[%clk 0:02:57]}  Nc6 {[%clk 0:02:45]} 6. Nxe4 {[%clk 0:02:56]}  Nd4 {[%clk 0:02:43]} 7. Nxf6+ {[%clk 0:02:56]}  gxf6 {[%clk 0:02:44]} 8. Qd1 {[%clk 0:02:57]}  Bf5 {[%clk 0:02:43]} 9. d3 {[%clk 0:02:57]}  e5 {[%clk 0:02:43]} 10. Be3 {[%clk 0:02:58]}  Qd7 {[%clk 0:02:41]} 11. c3 {[%clk 0:02:58]}  Nc6 {[%clk 0:02:41]} 12. Qa4 {[%clk 0:02:58]}  O-O-O {[%clk 0:02:41]} 13. O-O-O {[%clk 0:02:58]}  a6 {[%clk 0:02:40]} 14. g3 {[%clk 0:02:56]}  Be7 {[%clk 0:02:39]} 15. Bg2 {[%clk 0:02:51]}  Qe6 {[%clk 0:02:38]} 16. Bxc6 {[%clk 0:02:49]}  Qxc6 {[%clk 0:02:39]} 17. Qxc6 {[%clk 0:02:48]}  bxc6 {[%clk 0:02:40]} 18. Rh4 {[%clk 0:02:47]}  Bxd3 {[%clk 0:02:38]} 19. Ra4 {[%clk 0:02:35]}  Bb5 {[%clk 0:02:36]} 20. Rxd8+ {[%clk 0:02:29]}  Bxd8 {[%clk 0:02:36]} 21. Rg4 {[%clk 0:02:27]}  f5 {[%clk 0:02:35]} 22. Rg7 {[%clk 0:02:25]}  Bc4 {[%clk 0:02:35]} 23. Nf3 {[%clk 0:01:53]}  Bf6 {[%clk 0:02:33]} 24. Bxh6 {[%clk 0:01:51]}  Rxh6 {[%clk 0:02:27]} 25. Rg8+ {[%clk 0:01:51]}  Kb7 {[%clk 0:02:28]} 26. g4 {[%clk 0:01:47]}  fxg4 {[%clk 0:02:29]} 27. Rxg4 {[%clk 0:01:47]}  Bd5 {[%clk 0:02:29]} 28. Nd2 {[%clk 0:01:44]}  Rxh5 {[%clk 0:02:29]} 29. c4 {[%clk 0:01:44]}  Be6 {[%clk 0:02:28]} 30. Rg3 {[%clk 0:01:44]}  Bg5 {[%clk 0:02:28]} 31. Rb3+ {[%clk 0:01:42]}  Kc8 {[%clk 0:02:28]} 0-1


[Site "https://www.chess.com"]

[Event "Titled Tuesday Blitz May 03 Late 2022"]
[White "Vujic, Mihailo"]
[Black "Korchmar, Vasiliy"]
[WhiteFideId "918873"]
[BlackFideId "24131750"]
[WhiteElo "2256"]
[BlackElo "2370"]
[Result "0-1"]
[Round "06"]
[TimeControl "180+1"]
[Date "2022.05.03"]
[WhiteClock "0:00:03"]
[BlackClock "0:00:03"]

1. e4 {[%clk 0:02:59]}  c5 {[%clk 0:03:00]} 2. c3 {[%clk 0:02:59]}  Nf6 {[%clk 0:02:59]} 3. e5 {[%clk 0:02:59]}  Nd5 {[%clk 0:03:00]} 4. Nf3 {[%clk 0:02:59]}  e6 {[%clk 0:03:00]} 5. b4 {[%clk 0:02:58]}  cxb4 {[%clk 0:02:57]} 6. c4 {[%clk 0:02:58]}  Nf4 {[%clk 0:02:47]} 7. d4 {[%clk 0:02:59]}  Ng6 {[%clk 0:02:47]} 8. h4 {[%clk 0:02:53]}  h5 {[%clk 0:02:47]} 9. Bd3 {[%clk 0:02:52]}  Nc6 {[%clk 0:02:35]} 10. Bxg6 {[%clk 0:02:50]}  fxg6 {[%clk 0:02:36]} 11. Qd3 {[%clk 0:02:46]}  Ne7 {[%clk 0:02:36]} 12. Bg5 {[%clk 0:02:41]}  Kf7 {[%clk 0:02:36]} 13. d5 {[%clk 0:02:33]}  Qa5 {[%clk 0:02:26]} 14. Bxe7 {[%clk 0:02:19]}  Bxe7 {[%clk 0:02:16]} 15. d6 {[%clk 0:02:13]}  Bd8 {[%clk 0:02:03]} 16. Nbd2 {[%clk 0:02:12]}  b5 {[%clk 0:01:41]} 17. Ne4 {[%clk 0:02:05]}  b3+ {[%clk 0:01:36]} 18. Kf1 {[%clk 0:01:59]}  Rh6 {[%clk 0:01:19]} 19. Nfg5+ {[%clk 0:01:35]}  Kg8 {[%clk 0:01:15]} 20. Qf3 {[%clk 0:01:20]}  Bxg5 {[%clk 0:01:06]} 21. Nxg5 {[%clk 0:01:18]}  Bb7 {[%clk 0:01:07]} 22. Qxb7 {[%clk 0:01:15]}  Rf8 {[%clk 0:01:07]} 23. Qxb5 {[%clk 0:00:55]}  Qd2 {[%clk 0:01:07]} 24. Nf3 {[%clk 0:00:42]}  b2 {[%clk 0:00:58]} 25. Re1 {[%clk 0:00:34]}  Qc1 {[%clk 0:00:42]} 26. Ke2 {[%clk 0:00:24]}  Qc2+ {[%clk 0:00:38]} 27. Nd2 {[%clk 0:00:24]}  g5 {[%clk 0:00:34]} 28. hxg5 {[%clk 0:00:22]}  Rg6 {[%clk 0:00:34]} 29. Rxh5 {[%clk 0:00:20]}  Qf5 {[%clk 0:00:20]} 30. f3 {[%clk 0:00:17]}  Rxg5 {[%clk 0:00:20]} 31. Rxg5 {[%clk 0:00:16]}  Qxg5 {[%clk 0:00:21]} 32. g4 {[%clk 0:00:11]}  Qf4 {[%clk 0:00:06]} 33. Qxb2 {[%clk 0:00:11]}  Qh2+ {[%clk 0:00:07]} 34. Kd1 {[%clk 0:00:11]}  Rxf3 {[%clk 0:00:07]} 35. Qb8+ {[%clk 0:00:09]}  Rf8 {[%clk 0:00:08]} 36. Qxa7 {[%clk 0:00:08]}  Qg2 {[%clk 0:00:03]} 37. Qxd7 {[%clk 0:00:07]}  Qxg4+ {[%clk 0:00:03]} 38. Kc1 {[%clk 0:00:06]}  Ra8 {[%clk 0:00:03]} 39. Qb7 {[%clk 0:00:03]}  Rxa2 {[%clk 0:00:03]} 40. Qc8+ {[%clk 0:00:03]}  Kh7 {[%clk 0:00:02]} 41. Rh1+ {[%clk 0:00:03]}  Kg6 {[%clk 0:00:02]} 42. Qe8+ {[%clk 0:00:03]}  Kg5 {[%clk 0:00:02]} 43. Qe7+ {[%clk 0:00:03]}  Kf5 {[%clk 0:00:02]} 44. Qf7+ {[%clk 0:00:03]}  Kxe5 {[%clk 0:00:02]} 45. Re1+ {[%clk 0:00:02]}  Kxd6 {[%clk 0:00:01]} 46. Qf8+ {[%clk 0:00:02]}  Kd7 {[%clk 0:00:01]} 47. Qf7+ {[%clk 0:00:02]}  Kd6 {[%clk 0:00:02]} 48. Qf8+ {[%clk 0:00:02]}  Kc7 {[%clk 0:00:02]} 49. Qe7+ {[%clk 0:00:02]}  Kc8 {[%clk 0:00:02]} 50. Qe8+ {[%clk 0:00:03]}  Kc7 {[%clk 0:00:02]} 51. Qe7+ {[%clk 0:00:04]}  Kb8 {[%clk 0:00:02]} 52. Rxe6 {[%clk 0:00:04]}  Qg1+ {[%clk 0:00:02]} 53. Re1 {[%clk 0:00:03]}  Qb6 {[%clk 0:00:01]} 54. Qe5+ {[%clk 0:00:03]}  Ka7 {[%clk 0:00:01]} 55. Qe7+ {[%clk 0:00:01]}  Ka8 {[%clk 0:00:02]} 56. Qe8+ {[%clk 0:00:01]}  Ka7 {[%clk 0:00:02]} 57. Qd7+ {[%clk 0:00:02]}  Ka6 {[%clk 0:00:03]} 58. Qe8 {[%clk 0:00:03]}  Qb2+ {[%clk 0:00:02]} 59. Kd1 {[%clk 0:00:03]}  Qxd2# {[%clk 0:00:03]} 0-1


[Site "https://www.chess.com"]

[Event "Titled Tuesday Blitz May 03 Late 2022"]
[White "Weber, Samuel"]
[Black "Urbina Perez, Juan Antonio"]
[WhiteFideId "12924008"]
[BlackFideId "2217368"]
[WhiteElo "2215"]
[BlackElo "2192"]
[Result "1-0"]
[Round "06"]
[TimeControl "180+1"]
[Date "2022.05.03"]
[WhiteClock "0:00:25"]
[BlackClock "0:00:19"]

1. Nf3 {[%clk 0:03:00]}  d5 {[%clk 0:02:59]} 2. g3 {[%clk 0:03:01]}  e6 {[%clk 0:02:59]} 3. Bg2 {[%clk 0:03:01]}  Nf6 {[%clk 0:02:59]} 4. O-O {[%clk 0:03:02]}  c5 {[%clk 0:03:00]} 5. d4 {[%clk 0:02:57]}  cxd4 {[%clk 0:02:58]} 6. Nxd4 {[%clk 0:02:57]}  Nc6 {[%clk 0:02:59]} 7. Nxc6 {[%clk 0:02:56]}  bxc6 {[%clk 0:03:00]} 8. c4 {[%clk 0:02:57]}  Be7 {[%clk 0:03:00]} 9. Bf4 {[%clk 0:02:50]}  O-O {[%clk 0:02:59]} 10. cxd5 {[%clk 0:02:51]}  cxd5 {[%clk 0:02:58]} 11. Nc3 {[%clk 0:02:51]}  Bd6 {[%clk 0:02:56]} 12. Bxd6 {[%clk 0:02:51]}  Qxd6 {[%clk 0:02:57]} 13. Qd4 {[%clk 0:02:43]}  Qb6 {[%clk 0:02:52]} 14. Qxb6 {[%clk 0:02:42]}  axb6 {[%clk 0:02:52]} 15. Rfc1 {[%clk 0:02:39]}  Bd7 {[%clk 0:02:47]} 16. e3 {[%clk 0:02:35]}  Rfc8 {[%clk 0:02:46]} 17. Bf1 {[%clk 0:02:36]}  Kf8 {[%clk 0:02:44]} 18. a3 {[%clk 0:02:32]}  Ke7 {[%clk 0:02:44]} 19. Bd3 {[%clk 0:02:31]}  g6 {[%clk 0:02:40]} 20. Kf1 {[%clk 0:02:31]}  Kd6 {[%clk 0:02:38]} 21. f4 {[%clk 0:02:28]}  Rc7 {[%clk 0:02:37]} 22. Ke2 {[%clk 0:02:28]}  Rac8 {[%clk 0:02:36]} 23. h3 {[%clk 0:02:23]}  Bc6 {[%clk 0:02:29]} 24. g4 {[%clk 0:02:19]}  Nd7 {[%clk 0:02:29]} 25. h4 {[%clk 0:02:12]}  Nc5 {[%clk 0:02:28]} 26. Bc2 {[%clk 0:02:12]}  f6 {[%clk 0:02:22]} 27. Rd1 {[%clk 0:01:58]}  Ke7 {[%clk 0:02:21]} 28. Rd4 {[%clk 0:01:56]}  Rd8 {[%clk 0:02:08]} 29. Rad1 {[%clk 0:01:56]}  Rcd7 {[%clk 0:02:07]} 30. b4 {[%clk 0:01:50]}  e5 {[%clk 0:01:49]} 31. R4d2 {[%clk 0:01:36]}  Ne6 {[%clk 0:01:41]} 32. fxe5 {[%clk 0:01:23]}  fxe5 {[%clk 0:01:42]} 33. h5 {[%clk 0:01:02]}  d4 {[%clk 0:01:37]} 34. hxg6 {[%clk 0:00:59]}  hxg6 {[%clk 0:01:27]} 35. Na4 {[%clk 0:00:53]}  Bxa4 {[%clk 0:01:08]} 36. Bxa4 {[%clk 0:00:52]}  Rd6 {[%clk 0:01:08]} 37. Bb3 {[%clk 0:00:46]}  Ng5 {[%clk 0:00:56]} 38. exd4 {[%clk 0:00:46]}  exd4 {[%clk 0:00:56]} 39. Kd3 {[%clk 0:00:47]}  Kf6 {[%clk 0:00:51]} 40. Rf1+ {[%clk 0:00:45]}  Kg7 {[%clk 0:00:51]} 41. Re2 {[%clk 0:00:45]}  R8d7 {[%clk 0:00:44]} 42. Re5 {[%clk 0:00:45]}  Nh7 {[%clk 0:00:36]} 43. g5 {[%clk 0:00:44]}  Rc7 {[%clk 0:00:35]} 44. Bc4 {[%clk 0:00:42]}  Nf8 {[%clk 0:00:32]} 45. Rf4 {[%clk 0:00:34]}  b5 {[%clk 0:00:22]} 46. Rxb5 {[%clk 0:00:34]}  Ne6 {[%clk 0:00:23]} 47. Bxe6 {[%clk 0:00:33]}  Rxe6 {[%clk 0:00:23]} 48. Rxd4 {[%clk 0:00:33]}  Re1 {[%clk 0:00:21]} 49. Rc5 {[%clk 0:00:28]}  Rd1+ {[%clk 0:00:20]} 50. Kc4 {[%clk 0:00:28]}  Rxd4+ {[%clk 0:00:19]} 51. Kxd4 {[%clk 0:00:29]}  Ra7 {[%clk 0:00:20]} 52. Ra5 {[%clk 0:00:28]}  Rf7 {[%clk 0:00:20]} 53. Rd5 {[%clk 0:00:25]}  Rf3 {[%clk 0:00:20]} 54. a4 {[%clk 0:00:25]}  Ra3 {[%clk 0:00:20]} 55. a5 {[%clk 0:00:25]}  Ra4 {[%clk 0:00:19]} 56. Kc5 {[%clk 0:00:25]} 1-0


[Site "https://www.chess.com"]

[Event "Titled Tuesday Blitz May 03 Late 2022"]
[White "Yanayt, Eugene"]
[Black "Moral Garcia, Serafin"]
[WhiteFideId "2020165"]
[BlackFideId "2201925"]
[WhiteElo "2046"]
[BlackElo "2228"]
[Result "0-1"]
[Round "06"]
[TimeControl "180+1"]
[Date "2022.05.03"]
[WhiteClock "0:01:05"]
[BlackClock "0:01:51"]

1. d4 {[%clk 0:03:00]}  Nf6 {[%clk 0:02:57]} 2. c4 {[%clk 0:02:59]}  g6 {[%clk 0:02:50]} 3. Nc3 {[%clk 0:02:58]}  d5 {[%clk 0:02:50]} 4. Bd2 {[%clk 0:02:53]}  dxc4 {[%clk 0:02:46]} 5. Rc1 {[%clk 0:02:46]}  Bg7 {[%clk 0:02:46]} 6. Nf3 {[%clk 0:02:42]}  c6 {[%clk 0:02:42]} 7. a4 {[%clk 0:02:37]}  a6 {[%clk 0:02:38]} 8. e4 {[%clk 0:02:26]}  b5 {[%clk 0:02:36]} 9. b3 {[%clk 0:02:24]}  b4 {[%clk 0:02:32]} 10. Na2 {[%clk 0:02:12]}  c3 {[%clk 0:02:32]} 11. Bg5 {[%clk 0:02:10]}  a5 {[%clk 0:02:32]} 12. Bd3 {[%clk 0:02:07]}  Ba6 {[%clk 0:02:31]} 13. O-O {[%clk 0:02:06]}  O-O {[%clk 0:02:29]} 14. Rc2 {[%clk 0:01:54]}  c5 {[%clk 0:02:23]} 15. d5 {[%clk 0:01:51]}  Nbd7 {[%clk 0:02:18]} 16. Qe2 {[%clk 0:01:48]}  Bxd3 {[%clk 0:02:17]} 17. Qxd3 {[%clk 0:01:47]}  Ng4 {[%clk 0:02:15]} 18. d6 {[%clk 0:01:34]}  Nde5 {[%clk 0:02:15]} 19. Nxe5 {[%clk 0:01:13]}  Nxe5 {[%clk 0:02:14]} 20. Qd5 {[%clk 0:01:08]}  Qxd6 {[%clk 0:02:10]} 21. Qxd6 {[%clk 0:01:06]}  exd6 {[%clk 0:02:10]} 22. Be7 {[%clk 0:01:07]}  Rfc8 {[%clk 0:02:04]} 23. Bxd6 {[%clk 0:01:06]}  c4 {[%clk 0:01:56]} 24. Nc1 {[%clk 0:01:05]}  Nd3 {[%clk 0:01:51]} 0-1


[Site "https://www.chess.com"]

[Event "Titled Tuesday Blitz May 03 Late 2022"]
[White "Yaran, Siar"]
[Black "Guz, Ari"]
[WhiteFideId "6323006"]
[BlackFideId "2825759"]
[WhiteElo "1977"]
[BlackElo "1913"]
[Result "0-1"]
[Round "06"]
[TimeControl "180+1"]
[Date "2022.05.03"]
[WhiteClock "0:00:09"]
[BlackClock "0:00:19"]

1. e4 {[%clk 0:03:00]}  c5 {[%clk 0:02:59]} 2. Nf3 {[%clk 0:03:00]}  e6 {[%clk 0:03:00]} 3. Nc3 {[%clk 0:03:00]}  a6 {[%clk 0:02:59]} 4. d4 {[%clk 0:03:00]}  cxd4 {[%clk 0:03:00]} 5. Nxd4 {[%clk 0:03:01]}  Qc7 {[%clk 0:02:59]} 6. a3 {[%clk 0:03:01]}  Nf6 {[%clk 0:02:59]} 7. Be2 {[%clk 0:03:02]}  Nc6 {[%clk 0:02:59]} 8. Be3 {[%clk 0:03:01]}  Be7 {[%clk 0:02:59]} 9. f4 {[%clk 0:03:01]}  d6 {[%clk 0:02:57]} 10. Nb3 {[%clk 0:02:58]}  O-O {[%clk 0:02:54]} 11. O-O {[%clk 0:02:55]}  b5 {[%clk 0:02:53]} 12. g4 {[%clk 0:02:50]}  Bb7 {[%clk 0:02:53]} 13. g5 {[%clk 0:02:49]}  Nd7 {[%clk 0:02:52]} 14. Rf3 {[%clk 0:02:49]}  Rfd8 {[%clk 0:02:45]} 15. Rh3 {[%clk 0:02:46]}  Nf8 {[%clk 0:02:45]} 16. Qe1 {[%clk 0:02:43]}  d5 {[%clk 0:02:39]} 17. exd5 {[%clk 0:02:43]}  exd5 {[%clk 0:02:39]} 18. Bd3 {[%clk 0:02:34]}  g6 {[%clk 0:02:38]} 19. Nd4 {[%clk 0:02:33]}  Nxd4 {[%clk 0:02:38]} 20. Bxd4 {[%clk 0:02:34]}  Bc5 {[%clk 0:02:38]} 21. Bxc5 {[%clk 0:02:27]}  Qxc5+ {[%clk 0:02:39]} 22. Qf2 {[%clk 0:02:27]}  Qxf2+ {[%clk 0:02:33]} 23. Kxf2 {[%clk 0:02:28]}  Ne6 {[%clk 0:02:34]} 24. Ne2 {[%clk 0:02:28]}  Rac8 {[%clk 0:02:28]} 25. Rg1 {[%clk 0:02:22]}  d4 {[%clk 0:02:03]} 26. f5 {[%clk 0:02:22]}  Nc5 {[%clk 0:01:42]} 27. f6 {[%clk 0:01:39]}  Nxd3+ {[%clk 0:01:21]} 28. cxd3 {[%clk 0:01:40]}  Rc2 {[%clk 0:01:21]} 29. Rc1 {[%clk 0:01:25]}  Rxb2 {[%clk 0:01:15]} 30. Kf1 {[%clk 0:01:25]}  Rb3 {[%clk 0:01:08]} 31. Rc7 {[%clk 0:01:20]}  Be4 {[%clk 0:01:09]} 32. Rh4 {[%clk 0:00:44]}  Bxd3 {[%clk 0:00:45]} 33. Rxd4 {[%clk 0:00:44]}  Bxe2+ {[%clk 0:00:46]} 34. Kxe2 {[%clk 0:00:44]}  Rf8 {[%clk 0:00:47]} 35. a4 {[%clk 0:00:26]}  bxa4 {[%clk 0:00:39]} 36. Rxa4 {[%clk 0:00:27]}  Rb2+ {[%clk 0:00:37]} 37. Kf3 {[%clk 0:00:25]}  Rxh2 {[%clk 0:00:37]} 38. Rxa6 {[%clk 0:00:26]}  h6 {[%clk 0:00:35]} 39. gxh6 {[%clk 0:00:21]}  Rxh6 {[%clk 0:00:35]} 40. Kg4 {[%clk 0:00:20]}  Rh5 {[%clk 0:00:32]} 41. Rca7 {[%clk 0:00:18]}  Rf5 {[%clk 0:00:30]} 42. Re7 {[%clk 0:00:16]}  Rd8 {[%clk 0:00:25]} 43. Re4 {[%clk 0:00:17]}  Rf8 {[%clk 0:00:20]} 44. Rf4 {[%clk 0:00:16]}  Rxf4+ {[%clk 0:00:19]} 45. Kxf4 {[%clk 0:00:17]}  Re8 {[%clk 0:00:20]} 46. Ra7 {[%clk 0:00:15]}  Re6 {[%clk 0:00:18]} 47. Kg5 {[%clk 0:00:15]}  Re5+ {[%clk 0:00:18]} 48. Kg4 {[%clk 0:00:16]}  Rf5 {[%clk 0:00:18]} 49. Ra6 {[%clk 0:00:16]}  Kh7 {[%clk 0:00:19]} 50. Rb6 {[%clk 0:00:16]}  Kh6 {[%clk 0:00:19]} 51. Ra6 {[%clk 0:00:16]}  Rg5+ {[%clk 0:00:17]} 52. Kf4 {[%clk 0:00:14]}  Kh5 {[%clk 0:00:16]} 53. Ke4 {[%clk 0:00:14]}  Rf5 {[%clk 0:00:16]} 54. Rb6 {[%clk 0:00:11]}  Kg5 {[%clk 0:00:16]} 55. Rb1 {[%clk 0:00:09]}  Kxf6 {[%clk 0:00:16]} 56. Rg1 {[%clk 0:00:08]}  Kg7 {[%clk 0:00:17]} 57. Ke3 {[%clk 0:00:08]}  Rf6 {[%clk 0:00:17]} 58. Ke4 {[%clk 0:00:08]}  Rf2 {[%clk 0:00:16]} 59. Ke3 {[%clk 0:00:09]}  Rf5 {[%clk 0:00:17]} 60. Ke4 {[%clk 0:00:09]}  Kf6 {[%clk 0:00:18]} 61. Rg2 {[%clk 0:00:10]}  g5 {[%clk 0:00:18]} 62. Rg1 {[%clk 0:00:10]}  Rf4+ {[%clk 0:00:19]} 63. Ke3 {[%clk 0:00:10]}  Kg6 {[%clk 0:00:20]} 64. Rb1 {[%clk 0:00:10]}  f6 {[%clk 0:00:20]} 65. Rb8 {[%clk 0:00:10]}  Rf5 {[%clk 0:00:19]} 66. Ke4 {[%clk 0:00:10]}  Rf1 {[%clk 0:00:19]} 67. Ke3 {[%clk 0:00:11]}  Kh5 {[%clk 0:00:19]} 68. Ke2 {[%clk 0:00:11]}  Rf4 {[%clk 0:00:19]} 69. Rb1 {[%clk 0:00:10]}  Kg4 {[%clk 0:00:19]} 70. Rg1+ {[%clk 0:00:11]}  Kf5 {[%clk 0:00:19]} 71. Rb1 {[%clk 0:00:11]}  g4 {[%clk 0:00:20]} 72. Ke3 {[%clk 0:00:10]}  Rf3+ {[%clk 0:00:19]} 73. Ke2 {[%clk 0:00:11]}  Kg5 {[%clk 0:00:20]} 74. Rh1 {[%clk 0:00:10]}  f5 {[%clk 0:00:20]} 75. Rh8 {[%clk 0:00:11]}  Kf4 {[%clk 0:00:20]} 76. Ra8 {[%clk 0:00:11]}  Re3+ {[%clk 0:00:19]} 77. Kf2 {[%clk 0:00:11]}  Re4 {[%clk 0:00:19]} 78. Ra3 {[%clk 0:00:11]}  Rb4 {[%clk 0:00:20]} 79. Rc3 {[%clk 0:00:11]}  Rb2+ {[%clk 0:00:19]} 80. Kg1 {[%clk 0:00:11]}  Kg5 {[%clk 0:00:20]} 81. Rc8 {[%clk 0:00:11]}  f4 {[%clk 0:00:20]} 82. Rc3 {[%clk 0:00:09]}  Kh4 {[%clk 0:00:20]} 83. Rd3 {[%clk 0:00:09]}  f3 {[%clk 0:00:21]} 84. Kf1 {[%clk 0:00:09]}  Kg3 {[%clk 0:00:21]} 85. Ke1 {[%clk 0:00:09]}  Kg2 {[%clk 0:00:19]} 0-1


[Site "https://www.chess.com"]